[Event "13th Poti Nana Aleksandria Cup"]
[Site "Poti"]
[Date "2018.07.17"]
[Round "6"]
[White "Avetisyan, Mariam"]
[Black "Kokaia, Guram"]
[Result "1/2-1/2"]
[ECO "B20"]
[WhiteElo "2051"]
[BlackElo "2159"]
[Annotator "ChessBase"]
[PlyCount "60"]
[EventDate "2018.07.13"]
[EventType "swiss"]
[EventCountry "GEO"]
[SourceTitle "playchess.com"]
[Source "ChessBase"]
[SourceQuality "1"]
[TimeControl "40/5400+30:1800+30"]

1. e4 {[%emt 0:00:00]} c5 {[%emt 0:04:32]} 2. Ne2 {[%emt 0:00:00]} g6 {[%emt 0:00:20]} 3. g3 {[%emt 0:00:00]} Bg7 {[%emt 0:00:08]} 4. Bg2 {[%emt 0:00:00]} Nc6 {[%emt 0:00:23]} 5. c3 {[%emt 0:00:00]} e5 {[%emt 0:00:36]} 6. O-O {[%emt 0:00:25]} Nge7 {[%emt 0:00:16]} 7. d3 {[%emt 0:01:31]} O-O {[%emt 0:04:31]} 8. Be3 {[%emt 0:00:23]} d6 {[%emt 0:00:18]} 9. Nd2 {[%emt 0:09:29]} Be6 {[%emt 0:08:09]} 10. f4 {[%emt 0:01:17]} Qd7 {[%emt 0:03:05]} 11. Nf3 {[%emt 0:05:00]} Rac8 {[%emt 0:14:48]} 12. Qd2 {[%emt 0:13:07]} f6 {[%emt 0:03:13]} 13. Rfd1 {[%emt 0:17:58]} Rfd8 {[%emt 0:03:00]} 14. Qe1 {[%emt 0:09:05]} a5 {[%emt 0:02:27]} 15. d4 {[%emt 0:03:18]} cxd4 {[%emt 0:02:14]} 16. cxd4 {[%emt 0:00:02]} exf4 {[%emt 0:03:26]} 17. Bxf4 {[%emt 0:01:37]} d5 {[%emt 0:02:36]} 18. e5 {[%emt 0:11:05]} fxe5 {[%emt 0:05:46]} 19. Nxe5 {[%emt 0:00:19]} Nxe5 {[%emt 0:00:10]} 20. Bxe5 {[%emt 0:00:07]} Nc6 {[%emt 0:03:57]} 21. Bxg7 {[%emt 0:02:44]} Qxg7 {[%emt 0:00:09]} 22. Nf4 {[%emt 0:00:59]} Bf7 {[%emt 0:01:33]} 23. Ne6 {[%emt 0:03:54]} Bxe6 {[%emt 0:01:00]} 24. Qxe6+ {[%emt 0:00:03]} Kh8 {[%emt 0:00:15]} 25. Rac1 {[%emt 0:00:42]} Rc7 {[%emt 0:04:03]} 26. Qg4 {[%emt 0:02:04]} Rf7 {[%emt 0:03:34]} 27. Rc3 {[%emt 0:03:43]} Rf5 {[%emt 0:00:57]} 28. Rf3 {[%emt 0:01:39]} Rxf3 {[%emt 0:04:00]} 29. Bxf3 {[%emt 0:00:05]} Qf6 {[%emt 0:01:41]} 30. Bg2 {[%emt 0:00:27]} h5 {[%emt 0:07:00]} 1/2-1/2

[Event "13th Poti Nana Aleksandria Cup"]
[Site "Poti"]
[Date "2018.07.17"]
[Round "6"]
[White "Shanya Mishra"]
[Black "Samadov, Read"]
[Result "1-0"]
[ECO "D47"]
[WhiteElo "1980"]
[BlackElo "2037"]
[Annotator "NA RC"]
[PlyCount "95"]
[EventDate "2018.07.13"]
[EventType "swiss"]
[EventCountry "GEO"]
[SourceTitle "playchess.com"]
[Source "ChessBase"]
[SourceQuality "1"]
[TimeControl "40/5400+30:1800+30"]

1. d4 {[%emt 0:02:20]} d5 {[%emt 0:00:00]} 2. c4 {[%emt 0:00:19]} c6 {[%emt 0:00:00]} 3. Nf3 {[%emt 0:00:21]} Nf6 {[%emt 0:00:00]} 4. e3 {[%emt 0:00:44]} e6 {[%emt 0:00:00]} 5. Nc3 {[%emt 0:01:03]} Nbd7 {[%emt 0:00:03]} 6. Bd3 {[%emt 0:01:04]} dxc4 {[%emt 0:00:11]} 7. Bxc4 {[%emt 0:00:37]} b5 {[%emt 0:00:10]} 8. Bd3 {[%emt 0:00:43]} Bd6 {[%emt 0:00:18]} 9. O-O {[%emt 0:01:15] D47: Semi-Slav: Meran System} Bb7 {[%emt 0:00:26]} 10. a3 {[%emt 0:03:50]} a5 {[%emt 0:07:52]} 11. Qe2 $146 {[%emt 0:05:16]} ({Predecessor:} 11. e4 e5 12. dxe5 Nxe5 13. Nxe5 Bxe5 14. Be3 O-O 15. h3 Re8 16. Qc2 Qe7 17. Ne2 Rad8 {½-½ (47) Fressinet,L (2656)-Galkin,A (2606) Plovdiv 2008}) 11... b4 {[%emt 0:08:55]} 12. Nb1 {[%emt 0:02:15]} c5 {[%emt 0:09:56]} 13. Nbd2 $1 {[%emt 0:06:12]} cxd4 {[%emt 0:05:10]} 14. Nc4 {[%emt 0:03:48]} Bb8 {[%emt 0:05:03]} 15. exd4 {[%emt 0:02:23]} O-O {[%emt 0:11:42]} 16. Bg5 {[%emt 0:03:19]} Qc7 {[%emt 0:07:45]} 17. Nce5 {[%emt 0:01:46]} Nxe5 {[%emt 0:03:16]} 18. Nxe5 {[%emt 0:01:23]} Nd5 {[%emt 0:02:18]} 19. Rfc1 {[%emt 0:04:26]} Qd6 {[%emt 0:02:24]} 20. Qh5 {[%emt 0:01:52]} f5 {[%emt 0:02:17]} 21. Bc4 {[%emt 0:05:02]} Ba7 {[%emt 0:02:21]} 22. Rd1 {[%emt 0:04:50]} Nf6 {[%emt 0:11:04]} (22... bxa3 $1 $11 23. bxa3 (23. Rxa3 Bxd4 24. Rh3 Qxe5 $11) 23... Bxd4 24. Rxd4 Qxe5) 23. Qh4 {[%emt 0:01:14]} bxa3 {[%emt 0:06:45]} 24. Rxa3 {[%emt 0:01:57]} Rad8 {[%emt 0:00:37]} 25. Rxa5 {[%emt 0:03:33]} Bb6 {[%emt 0:01:46]} 26. Raa1 {[%emt 0:03:12]} Be4 {[%emt 0:02:52]} 27. Bf4 {[%emt 0:03:57]} Qe7 {[%emt 0:01:00]} 28. Be3 {[%emt 0:02:55]} Rd6 {[%emt 0:00:51]} 29. Ba2 {[%emt 0:05:57]} Ba7 {[%emt 0:02:00]} (29... Bd8 $14) 30. f3 {[%emt 0:06:06]} Ba8 {[%emt 0:00:55]} 31. Nd3 {[%emt 0:04:23]} ({Besser ist} 31. Qg5 $16) 31... Qd7 {[%emt 0:01:45]} 32. Nf4 {[%emt 0:02:26]} Nd5 {[%emt 0:00:59]} 33. Bxd5 {[%emt 0:06:59]} Bxd5 {[%emt 0:00:11]} 34. Nd3 {[%emt 0:01:53]} Bb8 {[%emt 0:01:31]} 35. Bf4 {[%emt 0:01:20]} Rb6 {[%emt 0:00:14]} 36. Nc5 {[%emt 0:02:14]} Qf7 {[%emt 0:01:02]} 37. Bxb8 {[%emt 0:00:11]} Rfxb8 {[%emt 0:00:14]} 38. Nd3 {[%emt 0:00:28]} Bb3 {[%emt 0:02:51]} 39. Rdc1 {[%emt 0:00:26]} Rd6 {[%emt 0:01:04]} 40. Ne5 {[%emt 0:00:00]} Qb7 {[%emt 0:00:00]} 41. Rc5 $18 {[%emt 0:08:02]} Rd5 {[%emt 0:17:43]} 42. Rac1 {[%emt 0:03:58]} Rxc5 {[%emt 0:01:26]} 43. dxc5 {[%emt 0:00:12]} Qd5 {[%emt 0:04:32]} 44. Qf4 {[%emt 0:01:23]} Rb5 {[%emt 0:03:03]} 45. c6 {[%emt 0:02:14]} Qd8 {[%emt 0:00:54]} 46. c7 {[%emt 0:00:40]} Qc8 {[%emt 0:00:07]} 47. Nc6 {[%emt 0:01:25]} Kf7 {[%emt 0:00:10]} 48. Na7 {[%emt 0:01:07]} 1-0

[Event "13th Poti Nana Aleksandria Cup"]
[Site "Poti"]
[Date "2018.07.17"]
[Round "6"]
[White "Nikulina, Alena"]
[Black "Tihonov, Gennady"]
[Result "0-1"]
[ECO "C47"]
[WhiteElo "1959"]
[BlackElo "1845"]
[Annotator "NA RC"]
[PlyCount "116"]
[EventDate "2018.07.13"]
[EventType "swiss"]
[EventCountry "GEO"]
[SourceTitle "playchess.com"]
[Source "ChessBase"]
[SourceQuality "1"]
[TimeControl "40/5400+30:1800+30"]

1. e4 {[%emt 0:00:00]} e5 {[%emt 0:02:23]} 2. Nf3 {[%emt 0:00:08]} Nf6 {[%emt 0:00:20]} 3. Nc3 {[%emt 0:00:05]} Nc6 {[%emt 0:00:05]} 4. d4 {[%emt 0:00:11]} exd4 {[%emt 0:00:10]} 5. Nxd4 {[%emt 0:00:02]} Bb4 {[%emt 0:00:25]} 6. Nxc6 {[%emt 0:00:09]} bxc6 {[%emt 0:00:05]} 7. Bd3 {[%emt 0:00:05]} d5 {[%emt 0:00:11]} 8. exd5 {[%emt 0:01:23]} cxd5 {[%emt 0:00:07]} 9. O-O {[%emt 0:00:04]} O-O {[%emt 0:00:32]} 10. Bg5 {[%emt 0:00:33]} c6 {[%emt 0:01:57]} 11. Qf3 {[%emt 0:00:19]} h6 {[%emt 0:00:11]} 12. Bh4 {[%emt 0:00:52] C47: Scotch Four Knights and Four Knights with 4 g3} (12. Bxf6 Qxf6 13. Qxf6 gxf6 14. Ne2 Bd6 15. Nd4 c5 16. Nf5 Bxf5 17. Bxf5 Be5 18. Rad1 Bxb2 19. Rxd5 Bd4 20. c3 Bxc3 21. Rxc5 Bd4 22. Rc4 Rfd8 23. Rfc1 Bb6 24. Rc8 Raxc8 25. Rxc8 Rxc8 26. Bxc8 {½-½ (26) Ganguly,S (2650)-Harikrishna,P (2744) Riadh 2017}) 12... g5 {[%emt 0:12:15]} 13. Bg3 {[%emt 0:21:36]} Bg4 {[%emt 0:00:18]} 14. Bc7 {[%emt 0:01:02]} Bxf3 {[%emt 0:00:20]} 15. Bxd8 {[%emt 0:00:07]} Raxd8 {[%emt 0:04:25]} 16. gxf3 {[%emt 0:00:14]} Nh5 $146 {[%emt 0:00:19]} ({Predecessor:} 16... c5 17. Ne2 c4 18. Bf5 Rfe8 19. Nd4 Bc5 {0-1 (42) Rodin,M (2366)-Sepp,O (2452) Moscow 2004}) 17. Ne2 {[%emt 0:01:48]} c5 {[%emt 0:05:36]} 18. c3 {[%emt 0:00:21]} Ba5 {[%emt 0:00:10]} 19. Rab1 {[%emt 0:22:46]} Rb8 {[%emt 0:09:30]} 20. Rfd1 {[%emt 0:01:17]} Rfe8 {[%emt 0:04:43]} 21. Kf1 {[%emt 0:00:39]} Bc7 {[%emt 0:05:44]} 22. Bc2 {[%emt 0:05:10]} Red8 {[%emt 0:06:19]} 23. Ng3 {[%emt 0:03:01]} Ng7 {[%emt 0:00:35]} 24. Bb3 {[%emt 0:02:10]} c4 {[%emt 0:00:58]} 25. Ba4 {[%emt 0:01:00]} Rb6 {[%emt 0:04:43]} 26. Rd2 {[%emt 0:11:34]} Bf4 {[%emt 0:04:12]} 27. Rdd1 {[%emt 0:08:07]} h5 {[%emt 0:00:41]} 28. h3 {[%emt 0:00:48]} h4 {[%emt 0:04:31]} 29. Ne2 {[%emt 0:00:13]} Be5 {[%emt 0:02:12]} 30. b3 {[%emt 0:03:10]} Ne6 {[%emt 0:05:26]} 31. bxc4 {[%emt 0:02:45]} Rxb1 {[%emt 0:02:20]} 32. Rxb1 {[%emt 0:00:07]} dxc4 {[%emt 0:00:05]} 33. Bb5 {[%emt 0:04:01]} Rb8 {[%emt 0:02:09]} 34. Rb4 {[%emt 0:02:59]} Bd6 {[%emt 0:01:42]} 35. Bxc4 {[%emt 0:03:38]} Bxb4 {[%emt 0:00:13]} 36. cxb4 {[%emt 0:00:02]} Rxb4 {[%emt 0:00:16]} 37. Bb3 {[%emt 0:00:27]} Nf4 {[%emt 0:02:25]} 38. Nxf4 {[%emt 0:01:06]} Rxf4 {[%emt 0:00:08]} 39. Ke2 {[%emt 0:00:05]} a5 {[%emt 0:00:24]} 40. Ke3 {[%emt 0:00:00]} a4 {[%emt 0:00:00]} 41. Bd5 {[%emt 0:01:32]} Kf8 {[%emt 0:00:51]} 42. Kd3 {[%emt 0:02:44]} Ke7 {[%emt 0:00:08]} 43. Ke3 {[%emt 0:05:34]} Kd6 {[%emt 0:00:24]} 44. Be4 {[%emt 0:00:19]} Kc5 {[%emt 0:00:25]} 45. Kd2 {[%emt 0:03:39]} Kb4 {[%emt 0:00:26]} 46. Kc2 {[%emt 0:00:18]} Ka3 {[%emt 0:00:43]} 47. Bd5 {[%emt 0:00:06]} Rf5 {[%emt 0:00:21]} 48. Be4 {[%emt 0:00:49]} Rc5+ {[%emt 0:00:44]} 49. Kb1 {[%emt 0:00:13]} Rb5+ $19 {[%emt 0:00:18]} 50. Ka1 {[%emt 0:00:48]} Rb2 {[%emt 0:00:21]} 51. Bd5 {[%emt 0:02:44]} Rxf2 {[%emt 0:00:12]} 52. Kb1 {[%emt 0:01:18]} Rh2 {[%emt 0:00:29]} 53. Bxf7 {[%emt 0:01:23]} Rxh3 {[%emt 0:02:44]} 54. Bd5 {[%emt 0:01:02]} Rg3 {[%emt 0:00:11]} 55. Be4 {[%emt 0:02:25]} h3 {[%emt 0:00:13]} 56. f4 {[%emt 0:00:37]} gxf4 {[%emt 0:00:12]} 57. Ka1 {[%emt 0:00:33]} Rg1+ {[%emt 0:00:28]} 58. Bb1 {[%emt 0:00:06]} Rxb1+ {[%emt 0:00:05]} 0-1

[Event "13th Poti Nana Aleksandria Cup"]
[Site "Poti"]
[Date "2018.07.17"]
[Round "6"]
[White "Bibilashvili, Lali"]
[Black "Martynyuk, Elizaveta"]
[Result "0-1"]
[ECO "B23"]
[WhiteElo "1816"]
[BlackElo "2182"]
[Annotator "NA"]
[PlyCount "96"]
[EventDate "2018.07.13"]
[EventType "swiss"]
[EventCountry "GEO"]
[SourceTitle "playchess.com"]
[Source "ChessBase"]
[SourceQuality "1"]
[TimeControl "40/5400+30:1800+30"]

1. e4 {[%emt 0:01:14]} c5 {[%emt 0:00:00]} 2. Nc3 {[%emt 0:00:05]} Nc6 {[%emt 0:00:00]} 3. f4 {[%emt 0:00:04]} d6 {[%emt 0:00:00]} 4. Nf3 {[%emt 0:00:04]} g6 {[%emt 0:00:21]} 5. Bc4 {[%emt 0:00:06]} Bg7 {[%emt 0:00:11]} 6. O-O {[%emt 0:00:56]} e6 {[%emt 0:00:14]} 7. d3 {[%emt 0:02:37]} Nge7 {[%emt 0:00:10]} 8. f5 {[%emt 0:00:31]} O-O {[%emt 0:07:17]} 9. Qe1 {[%emt 0:04:36]} d5 {[%emt 0:03:16]} 10. Bb3 {[%emt 0:02:10]} c4 {[%emt 0:02:13] B23: Closed Sicilian: Lines without g3} 11. f6 {[%emt 0:11:39] LiveBook: 4 Games} Bxf6 {[%emt 0:01:18]} 12. dxc4 {[%emt 0:00:26]} dxc4 {[%emt 0:01:15]} (12... d4 13. e5 Nxe5 14. Nxe5 Bxe5 15. Qxe5 Nc6 16. Qg3 dxc3 17. bxc3 e5 18. Bh6 {0-1 (40) Najer,E (2658)-Riazantsev,A (2646) Moscow 2015}) 13. Bxc4 {[%emt 0:00:13]} Ne5 {[%emt 0:01:17]} 14. Nxe5 $146 {[%emt 0:01:51]} ({Predecessor:} 14. Bb3 N7c6 15. Bh6 Re8 16. Rd1 Qe7 17. Qg3 Bd7 18. Ng5 {1-0 (46) Skytte,R (2424)-Cukrowski,F (2196) Wroclaw 2014}) 14... Bxe5 {[%emt 0:00:17]} 15. Be3 {[%emt 0:00:30]} Qc7 {[%emt 0:01:03]} 16. Qh4 {[%emt 0:03:03]} Qxc4 {[%emt 0:01:18]} 17. Qxe7 {[%emt 0:00:07]} b6 {[%emt 0:07:14]} 18. Bh6 {[%emt 0:08:23]} Bg7 {[%emt 0:01:39]} 19. Bxg7 {[%emt 0:00:14]} Kxg7 {[%emt 0:00:04]} 20. Qf6+ {[%emt 0:00:08]} Kg8 {[%emt 0:00:06]} 21. Rad1 {[%emt 0:01:19]} Ba6 {[%emt 0:00:23]} 22. Rf2 {[%emt 0:14:20]} (22. h4 $5 {[%cal Rf1f2]}) 22... Qc7 $1 {[%emt 0:05:56]} 23. Rfd2 {[%emt 0:00:31]} Rac8 {[%emt 0:00:36]} 24. Rd7 {[%emt 0:03:21]} Qc5+ {[%emt 0:00:25]} 25. Kh1 {[%emt 0:00:33]} Qb4 {[%emt 0:03:58]} 26. Rxa7 {[%emt 0:04:50]} Qxb2 {[%emt 0:01:21]} 27. Nd5 {[%emt 0:02:21]} Qxf6 {[%emt 0:00:15]} 28. Nxf6+ {[%emt 0:00:03]} Kg7 {[%emt 0:00:21]} 29. e5 {[%emt 0:02:59]} Be2 {[%emt 0:02:56]} 30. Rd2 {[%emt 0:06:10]} Bb5 {[%emt 0:03:42]} 31. Ne4 {[%emt 0:01:41]} Ra8 {[%emt 0:00:44]} 32. Rxa8 {[%emt 0:00:32]} (32. Rc7 $11) 32... Rxa8 {[%emt 0:00:03]} 33. Nd6 {[%emt 0:14:44]} Rxa2 {[%emt 0:00:14]} 34. h3 {[%emt 0:00:27]} Ba4 {[%emt 0:00:58]} 35. Rf2 {[%emt 0:00:03]} Rxc2 {[%emt 0:00:21]} 36. Rxf7+ {[%emt 0:00:09]} Kh6 {[%emt 0:01:05]} 37. Ne4 {[%emt 0:05:13]} Bc6 {[%emt 0:01:36]} 38. Nf6 {[%emt 0:02:00]} Rxg2 {[%emt 0:00:56]} 39. h4 {[%emt 0:01:30]} Rg4+ {[%emt 0:00:39]} 40. Kh2 {[%emt 0:00:00]} Rxh4+ {[%emt 0:00:00]} 41. Kg3 {[%emt 0:00:05]} Rc4 {[%emt 0:01:08]} 42. Nxh7 {[%emt 0:01:48]} Rc3+ {[%emt 0:00:47]} 43. Kg4 {[%emt 0:02:01]} Be4 {[%emt 0:00:53]} 44. Kf4 {[%emt 0:06:54]} Bf5 {[%emt 0:01:29]} 45. Rb7 {[%emt 0:01:08]} g5+ {[%emt 0:00:09]} 46. Nxg5 {[%emt 0:00:03]} Rc4+ {[%emt 0:00:05]} 47. Kf3 {[%emt 0:00:12]} Kxg5 $19 {[%emt 0:00:03]} 48. Rxb6 {[%emt 0:00:04]} Rc3+ {[%emt 0:00:11]} 0-1

[Event "13th Poti Nana Aleksandria Cup"]
[Site "Poti"]
[Date "2018.07.18"]
[Round "7"]
[White "Golubov, Saveliy"]
[Black "Eynullayev, Altay"]
[Result "1/2-1/2"]
[ECO "A46"]
[WhiteElo "2488"]
[BlackElo "2134"]
[Annotator "RC"]
[PlyCount "66"]
[EventDate "2018.07.13"]
[EventType "swiss"]
[EventCountry "GEO"]
[SourceTitle "playchess.com"]
[Source "ChessBase"]
[SourceQuality "1"]
[TimeControl "40/5400+30:1800+30"]

1. d4 {[%emt 0:00:00]} Nf6 {[%emt 0:00:00]} 2. Nf3 {[%emt 0:00:06]} e6 {[%emt 0:00:00]} 3. Bf4 {[%emt 0:00:11]} c5 {[%emt 0:00:00]} 4. e3 {[%emt 0:00:04]} Nc6 {[%emt 0:00:00]} 5. Nbd2 {[%emt 0:00:26]} d5 {[%emt 0:00:00]} 6. c3 {[%emt 0:00:06]} cxd4 {[%emt 0:00:06]} 7. exd4 {[%emt 0:00:06]} Nh5 {[%emt 0:00:03]} 8. Be3 {[%emt 0:05:31]} Bd6 {[%emt 0:00:20]} 9. Ne5 {[%emt 0:00:20]} g6 {[%emt 0:00:07]} 10. g4 {[%emt 0:13:27]} Ng7 {[%emt 0:00:05]} 11. f4 {[%emt 0:31:41]} f6 {[%emt 0:02:52]} 12. Nd3 {[%emt 0:02:17]} O-O {[%emt 0:10:27]} 13. Bg2 {[%emt 0:02:55]} e5 {[%emt 0:07:15]} 14. Bxd5+ {[%emt 0:05:33]} Kh8 {[%emt 0:00:09]} 15. O-O {[%emt 0:00:25]} exd4 {[%emt 0:01:09]} 16. cxd4 {[%emt 0:00:01]} Re8 {[%emt 0:08:43]} 17. Re1 {[%emt 0:05:52]} Bc7 {[%emt 0:08:57]} 18. Bg2 {[%emt 0:00:07]} Bb6 {[%emt 0:14:11]} 19. Nb3 {[%emt 0:12:43]} Nxd4 {[%emt 0:05:10]} 20. Bxd4 {[%emt 0:00:30]} Bxd4+ {[%emt 0:00:04]} 21. Kh1 {[%emt 0:00:10]} Rxe1+ {[%emt 0:05:08]} 22. Nxe1 {[%emt 0:00:40]} Bb6 {[%emt 0:00:08]} 23. Qxd8+ {[%emt 0:01:43]} Bxd8 {[%emt 0:00:11]} 24. h3 {[%emt 0:00:01]} Bc7 {[%emt 0:08:17]} 25. Nd3 {[%emt 0:00:10]} Rb8 {[%emt 0:03:07]} 26. Re1 {[%emt 0:03:07]} Bd6 {[%emt 0:04:06]} 27. Nbc5 {[%emt 0:02:32]} Kg8 {[%emt 0:03:38]} 28. Ne4 {[%emt 0:00:24]} Be7 {[%emt 0:00:23]} 29. Ng5 {[%emt 0:00:08]} fxg5 {[%emt 0:04:37]} 30. Rxe7 {[%emt 0:00:09]} Kf8 {[%emt 0:07:41]} 31. Rc7 {[%emt 0:00:02]} Ne6 {[%emt 0:00:51]} 32. Rxh7 {[%emt 0:00:07]} Kg8 {[%emt 0:00:26]} 33. Re7 {[%emt 0:01:40]} Kf8 {[%emt 0:00:05]} 1/2-1/2

[Event "13th Poti Nana Aleksandria Cup"]
[Site "Poti"]
[Date "2018.07.18"]
[Round "7"]
[White "Sindarov, Javokhir"]
[Black "Sattarov, Bobir"]
[Result "1-0"]
[ECO "C02"]
[WhiteElo "2474"]
[BlackElo "2328"]
[Annotator "ChessBase"]
[PlyCount "109"]
[EventDate "2018.07.13"]
[EventType "swiss"]
[EventCountry "GEO"]
[SourceTitle "playchess.com"]
[Source "ChessBase"]
[SourceQuality "1"]
[TimeControl "40/5400+30:1800+30"]

1. e4 {[%emt 0:06:38]} e6 {[%emt 0:00:00]} 2. d4 {[%emt 0:00:40]} d5 {[%emt 0:00:00]} 3. e5 {[%emt 0:01:18]} c5 {[%emt 0:00:04]} 4. c3 {[%emt 0:00:02]} Qb6 {[%emt 0:00:06]} 5. Nf3 {[%emt 0:00:19]} Bd7 {[%emt 0:00:17]} 6. Be2 {[%emt 0:01:18]} Nc6 {[%emt 0:01:21]} 7. a3 {[%emt 0:00:14]} c4 {[%emt 0:00:10]} 8. O-O {[%emt 0:02:14]} Na5 {[%emt 0:02:54]} 9. Nbd2 {[%emt 0:00:09]} Nh6 {[%emt 0:00:11]} 10. h3 {[%emt 0:03:13]} Be7 {[%emt 0:01:35]} 11. Qe1 {[%emt 0:03:16]} Ba4 {[%emt 0:00:21]} 12. Bd1 {[%emt 0:01:39]} Qc6 {[%emt 0:05:23]} 13. g4 {[%emt 0:01:25]} Bxd1 {[%emt 0:05:12]} 14. Qxd1 {[%emt 0:00:06]} f5 {[%emt 0:00:44]} 15. exf6 {[%emt 0:02:46]} gxf6 {[%emt 0:01:21]} 16. Nxc4 {[%emt 0:00:11]} Nxc4 {[%emt 0:00:01]} 17. Bxh6 {[%emt 0:00:07]} Nxb2 {[%emt 0:00:01]} 18. Qc2 {[%emt 0:00:07]} Nc4 {[%emt 0:05:06]} 19. Rfe1 {[%emt 0:06:27]} O-O-O {[%emt 0:00:11]} 20. Re2 {[%emt 0:00:53]} Rde8 {[%emt 0:07:50]} 21. Rae1 {[%emt 0:01:22]} Bd8 {[%emt 0:00:23]} 22. a4 {[%emt 0:01:01]} Rhg8 {[%emt 0:07:00]} 23. Kh1 {[%emt 0:08:13]} Bc7 {[%emt 0:14:30]} 24. Qxh7 {[%emt 0:02:39]} e5 {[%emt 0:16:02]} 25. Kg2 {[%emt 0:12:04]} Kb8 {[%emt 0:10:59]} 26. Qf5 {[%emt 0:03:12]} e4 {[%emt 0:08:13]} 27. Nd2 {[%emt 0:00:08]} Nb2 {[%emt 0:00:32]} 28. Nf1 {[%emt 0:09:07]} Nd3 {[%emt 0:02:39]} 29. Rb1 {[%emt 0:00:32]} Rg5 {[%emt 0:03:51]} 30. Bxg5 {[%emt 0:00:11]} fxg5 {[%emt 0:00:00]} 31. Re3 {[%emt 0:02:01]} Qxc3 {[%emt 0:00:36]} 32. Rd1 {[%emt 0:01:46]} Rh8 {[%emt 0:02:11]} 33. Rdxd3 {[%emt 0:00:15]} exd3 {[%emt 0:00:05]} 34. Rxd3 {[%emt 0:00:05]} Qc6 {[%emt 0:06:28]} 35. Qxg5 {[%emt 0:00:43]} Qxa4 {[%emt 0:00:15]} 36. Qxd5 {[%emt 0:00:27]} Rd8 {[%emt 0:00:18]} 37. Qe4 {[%emt 0:01:34]} a5 {[%emt 0:00:28]} 38. Ne3 {[%emt 0:02:14]} Qa2 {[%emt 0:00:40]} 39. d5 {[%emt 0:04:37]} a4 {[%emt 0:00:01]} 40. Nf5 {[%emt 0:00:00]} Bb6 {[%emt 0:00:00]} 41. Qf4+ {[%emt 0:04:03]} Ka7 {[%emt 0:09:37]} 42. d6 {[%emt 0:00:37]} Rd7 {[%emt 0:02:51]} 43. Ne7 {[%emt 0:03:10]} Bc5 {[%emt 0:02:24]} 44. Qf5 {[%emt 0:00:37]} Qc2 {[%emt 0:01:06]} 45. Rd4 {[%emt 0:00:11]} Qxf5 {[%emt 0:01:22]} 46. Rxa4+ Kb8 47. Nxf5 {[%emt 0:00:17]} b5 {[%emt 0:00:01]} 48. Ra5 {[%emt 0:00:21]} Rb7 {[%emt 0:00:07]} 49. g5 {[%emt 0:00:03]} Bb4 {[%emt 0:00:20]} 50. Ra6 {[%emt 0:00:42]} Bc3 {[%emt 0:00:07]} 51. g6 {[%emt 0:00:23]} b4 {[%emt 0:00:17]} 52. Rc6 {[%emt 0:00:43]} Ka7 {[%emt 0:00:44]} 53. h4 {[%emt 0:01:21]} b3 {[%emt 0:01:29]} 54. Rxc3 {[%emt 0:00:09]} b2 {[%emt 0:00:02]} 55. d7 {[%emt 0:00:34]} 1-0

[Event "13th Poti Nana Aleksandria Cup"]
[Site "Poti"]
[Date "2018.07.18"]
[Round "7"]
[White "Harutjunyan, Gevorg"]
[Black "Der Manuelian, Haik"]
[Result "1-0"]
[ECO "C26"]
[WhiteElo "2418"]
[BlackElo "2242"]
[Annotator "RC"]
[PlyCount "63"]
[EventDate "2018.07.13"]
[EventType "swiss"]
[EventCountry "GEO"]
[SourceTitle "playchess.com"]
[Source "ChessBase"]
[SourceQuality "1"]
[TimeControl "40/5400+30:1800+30"]

1. e4 {[%emt 0:00:00]} e5 {[%emt 0:00:00]} 2. Nc3 {[%emt 0:00:00]} Nf6 {[%emt 0:00:00]} 3. Bc4 {[%emt 0:00:00]} c6 {[%emt 0:02:07]} 4. Nf3 {[%emt 0:10:57]} d5 {[%emt 0:08:47]} 5. Bb3 {[%emt 0:03:04]} Bb4 {[%emt 0:08:14]} 6. Nxe5 {[%emt 0:08:04]} Qe7 {[%emt 0:20:12]} 7. d4 {[%emt 0:09:43]} Nxe4 {[%emt 0:00:40]} 8. O-O {[%emt 0:00:13]} Nxc3 {[%emt 0:03:56]} 9. bxc3 {[%emt 0:00:11]} Bxc3 {[%emt 0:01:09]} 10. Rb1 {[%emt 0:00:13]} O-O {[%emt 0:02:59]} 11. Qd3 {[%emt 0:00:23]} Ba5 {[%emt 0:01:51]} 12. c4 {[%emt 0:00:53]} g6 {[%emt 0:08:10]} 13. cxd5 {[%emt 0:08:43]} Bf5 {[%emt 0:03:56]} 14. Qf3 {[%emt 0:01:30]} Bxb1 {[%emt 0:07:12]} 15. d6 {[%emt 0:04:40]} Qe8 {[%emt 0:00:02]} 16. Bh6 {[%emt 0:12:24]} Bf5 {[%emt 0:00:07]} 17. Bxf8 {[%emt 0:01:46]} Kxf8 {[%emt 0:06:25]} 18. Bxf7 {[%emt 0:01:56]} Qd8 {[%emt 0:00:01]} 19. Bxg6 {[%emt 0:13:14]} hxg6 {[%emt 0:00:24]} 20. Nxg6+ {[%emt 0:01:40]} Kg7 {[%emt 0:01:59]} 21. Qxf5 {[%emt 0:00:07]} Qd7 {[%emt 0:07:10]} 22. Qg5 {[%emt 0:01:56]} Bd2 {[%emt 0:00:38]} 23. Qg3 {[%emt 0:04:39]} Qf5 {[%emt 0:04:16]} 24. Ne7+ {[%emt 0:02:23]} Qg5 {[%emt 0:00:07]} 25. Qb3 {[%emt 0:00:21]} b6 {[%emt 0:02:33]} 26. h4 {[%emt 0:03:29]} Qh5 {[%emt 0:01:26]} 27. Qg8+ {[%emt 0:02:20]} Kf6 {[%emt 0:00:01]} 28. g4 {[%emt 0:03:37]} Qf7 {[%emt 0:00:55]} 29. Qc8 {[%emt 0:00:31]} Bb4 {[%emt 0:03:13]} 30. g5+ {[%emt 0:01:31]} Kg7 {[%emt 0:00:15]} 31. h5 {[%emt 0:00:15]} Bd2 {[%emt 0:01:16]} 32. Nf5+ {[%emt 0:00:34]} 1-0